bitfinex/quotes_ETHUSD_20251218
["timestamp","ask_amount","ask_price","bid_price","bid_amount"]
[1766066869237,0.002,2981.2,2980.5,0.568]
[1766066869437,0.002,2981.2,2980.6,2.5934]
[1766066869655,0.002,2981.2,2979.7,0.03356042]
[1766066869826,2.5848,2980.1,2978.8,2.62697056]
[1766066870049,2.5848,2979.9,2978.9,1.03490706]
[1766066870431,9.8227,2979.9,2978.9,1.03490706]
[1766066870933,9.8227,2979.9,2978.9,8.75700706]
[1766066871130,0.567,2979.8,2978.9,1.03490706]
[1766066871466,0.567,2979.8,2979.1,2.5934]
[1766066871665,0.567,2979.8,2979.1,10.3155]
[1766066871840,0.567,2979.8,2978.7,0.567]
[1766066872051,0.567,2979.8,2979.0,2.5934]
[1766066872359,10.3897,2979.8,2978.7,1.03138023]
[1766066872562,0.567,2979.8,2978.9,2.5934]
[1766066872759,0.567,2979.8,2978.7,0.36247802]
[1766066872980,0.567,2979.8,2978.7,0.567]
[1766066873271,0.567,2979.8,2979.1,10.3155]
[1766066873471,0.567,2979.9,2979.1,10.3155]
[1766066874076,0.567,2979.9,2978.7,0.567]
[1766066874077,0.567,2979.9,2978.4,0.972504]
[1766066874362,9.8227,2979.8,2978.4,0.972504]
[1766066874543,7.2379,2979.8,2978.6,10.77988023]
[1766066874746,2.5848,2979.7,2978.6,10.77988023]
[1766066874943,0.567,2979.9,2978.5,0.47944301]
[1766066875263,0.567,2979.9,2978.6,0.46438023]
[1766066875761,0.569,2979.9,2978.7,10.3155]
[1766066876062,0.002,2979.9,2979.0,7.7221]
[1766066876261,0.567,2980.2,2978.8,0.567]
[1766066876463,3.35528789,2980.4,2978.8,0.567]
[1766066876760,0.567,2980.4,2979.1,7.7221]
[1766066876963,0.567,2980.4,2979.3,7.7221]
[1766066877163,7.2379,2980.3,2979.0,2.5934]
[1766066877367,8.62610563,2980.7,2979.0,2.5934]
[1766066877368,9.8227,2980.0,2979.0,2.5934]
[1766066877547,8.58457782,2980.7,2979.1,7.7221]
[1766066877548,9.8227,2980.3,2979.1,7.7221]
[1766066877746,9.8227,2980.1,2979.1,7.7221]
[1766066878055,9.8227,2980.1,2979.0,2.5934]
[1766066878056,4.39456424,2980.1,2979.0,2.5934]
[1766066878254,2.5848,2979.7,2979.0,2.5934]
[1766066878438,9.8227,2979.5,2979.0,2.5934]
[1766066878762,2.5848,2979.3,2978.4,7.7221]
[1766066879170,0.567,2979.6,2977.6,3.35832195]
[1766066879171,7.2379,2979.2,2977.6,7.7221]
[1766066879364,7.2379,2978.6,2977.5,0.001]
[1766066879574,2.5848,2978.3,2977.5,0.001]
[1766066879869,0.567,2978.5,2977.6,7.7221]
[1766066880168,2.5848,2979.1,2977.7,0.03358296]
[1766066880386,0.567,2979.3,2977.8,7.7221]
[1766066880539,2.5848,2979.6,2977.6,3.92540499]
[1766066880540,2.5848,2979.6,2978.0,7.9631]
[1766066880875,2.5848,2979.6,2977.9,0.77221]
[1766066880876,7.3579,2978.7,2977.9,0.77221]
[1766066881182,2.6002,2978.4,2977.5,0.001]
[1766066881480,2.6002,2978.2,2977.5,0.001]
[1766066881653,7.3579,2978.0,2976.7,7.9631]
[1766066881841,8.58457782,2978.5,2977.3,1.7311]
[1766066881842,0.567,2977.9,2977.3,1.7311]
[1766066882043,0.567,2978.2,2977.4,7.9631]
[1766066882238,3.76213739,2979.2,2977.6,9.6942]
[1766066882239,7.3579,2979.0,2977.6,9.6942]
[1766066882537,7.9249,2978.7,2977.6,7.9631]
[1766066882742,7.9249,2978.7,2977.4,0.567]
[1766066882743,2.6002,2978.3,2977.4,0.567]
[1766066883177,8.58457782,2979.3,2977.6,1.7311]
[1766066883375,0.567,2979.2,2978.1,7.9631]
[1766066883550,2.6002,2979.3,2978.2,1.7311]
[1766066883753,6.52370826,2979.3,2978.3,7.9631]
[1766066883956,2.6002,2979.0,2978.0,0.567]
[1766066884188,2.6002,2979.0,2978.0,1.02612]
[1766066884566,2.6002,2978.8,2977.0,9.6942]
[1766066884870,0.567,2978.8,2978.0,7.9631]
[1766066885078,21.89920356,2979.3,2978.0,9.6942]
[1766066885278,0.567,2979.0,2978.0,9.6942]
[1766066885486,2.6002,2979.2,2978.0,9.6942]
[1766066885487,7.39942781,2979.2,2978.0,9.6942]
[1766066885783,3.1672,2979.1,2978.1,7.9631]
[1766066886154,3.1662,2979.1,2978.1,7.9631]
[1766066886569,7.3579,2979.2,2978.1,2.2971]
[1766066886782,0.46438023,2979.3,2978.2,7.9631]
[1766066886983,0.46438023,2979.3,2978.1,0.566]
[1766066886984,0.566,2979.3,2978.4,9.6942]
[1766066887184,2.6002,2979.1,2978.3,0.85291]
[1766066887354,9.9581,2979.0,2978.0,0.566]
[1766066887559,2.6002,2979.0,2978.0,8.5291]
[1766066887754,2.6002,2979.0,2978.1,7.9631]
[1766066887971,7.9239,2979.3,2978.1,7.9631]
[1766066888178,2.6002,2979.1,2978.1,7.9631]
[1766066888392,2.64172781,2979.1,2978.2,1.02602]
[1766066888674,7.39942781,2979.1,2978.2,1.02602]
[1766066888856,2.6002,2979.0,2977.9,1.7311]
[1766066889051,2.6002,2980.0,2978.4,1.7311]
[1766066889280,2.6002,2980.0,2978.7,9.6942]
[1766066889281,0.566,2979.9,2978.7,9.6942]
[1766066889483,3.1662,2979.9,2978.7,2.2971]
[1766066889685,10.5241,2979.9,2978.8,7.9631]
[1766066889985,2.6002,2979.6,2978.6,0.566]
[1766066890185,0.566,2979.5,2978.5,7.9631]
[1766066890486,3.1662,2979.5,2978.5,8.5291]
[1766066890690,3.1662,2979.5,2978.6,1.7311]
[1766066890691,0.566,2979.5,2978.6,1.7311]
[1766066890869,0.566,2979.5,2978.8,1.7311]
[1766066891070,0.566,2979.5,2978.9,7.9631]
[1766066891466,0.566,2979.5,2978.8,0.17311]
[1766066891690,3.1662,2979.5,2978.5,10.2602]
[1766066891855,7.9231,2979.5,2978.1,0.86988423]
[1766066892060,2.6002,2979.4,2978.3,7.9631]
[1766066892261,2.6002,2979.4,2978.3,9.6942]
[1766066892694,2.6002,2979.4,2978.3,7.9631]
[1766066892909,2.6002,2979.4,2978.5,7.4747]
[1766066893107,2.6002,2979.4,2978.5,8.0407]
[1766066893310,2.6002,2979.4,2978.6,0.001]
[1766066893479,7.7742,2979.5,2978.6,7.4757]
[1766066893804,0.566,2979.8,2978.8,7.4747]
[1766066893978,0.566,2979.8,2978.8,9.2058]
[1766066894179,2.4489,2979.7,2978.8,7.4747]
[1766066894583,5.80495895,2979.7,2978.8,7.4747]
[1766066894786,7.7742,2979.6,2978.6,0.001]
[1766066894986,7.7742,2979.4,2978.6,0.567]
[1766066895304,5.10615722,2979.7,2978.6,0.001]
[1766066895305,10.2231,2979.3,2978.6,0.001]
[1766066895818,8.46221617,2979.7,2978.7,7.4747]
[1766066895819,0.46438023,2979.7,2978.7,7.4747]
[1766066896114,0.566,2979.5,2978.7,7.4747]
[1766066897017,1.03038023,2979.7,2978.9,7.4747]
[1766066897182,0.46438023,2979.6,2978.6,0.001]
[1766066897388,2.4489,2979.2,2978.6,0.001]
[1766066897603,10.7891,2979.2,2978.6,0.001]
[1766066897969,10.2231,2979.2,2978.6,0.001]
[1766066898175,3.0149,2979.2,2978.6,0.001]
[1766066899316,2.4489,2979.2,2978.6,0.001]
[1766066899474,3.0149,2979.2,2978.6,0.001]
[1766066899810,14.14570763,2979.2,2978.6,0.001]
[1766066900009,7.7742,2979.1,2978.1,8.0407]
[1766066900314,2.4489,2979.0,2978.1,7.4747]
[1766066900484,7.7742,2979.0,2978.1,7.4747]
[1766066900802,2.4489,2978.9,2978.1,7.4747]
[1766066901105,2.4489,2978.7,2978.0,0.566]
[1766066901490,2.4489,2978.7,2977.5,0.001]
[1766066901491,7.7742,2978.1,2977.5,0.001]
[1766066901702,2.4489,2978.0,2977.5,0.001]
[1766066902010,10.2231,2978.0,2977.1,7.4747]
[1766066902180,2.4489,2977.9,2977.1,7.4747]
[1766066902379,3.92276289,2978.2,2977.1,9.2058]
[1766066902611,3.92276289,2978.2,2976.7,0.001]
[1766066902612,7.7742,2977.8,2976.7,0.001]
[1766066902921,2.4489,2977.7,2976.7,0.566]
[1766066903378,10.2231,2977.7,2976.7,0.566]
[1766066903574,0.565,2977.8,2976.7,0.566]
[1766066903775,0.46438023,2977.6,2976.7,0.566]
[1766066904004,2.91328023,2977.6,2976.7,0.566]
[1766066904610,4.48367322,2977.6,2976.7,0.001]
[1766066904814,2.4489,2977.4,2976.7,0.001]
[1766066905113,6.71675252,2977.7,2976.7,0.001]
[1766066905114,8.58210926,2978.2,2976.7,0.001]
[1766066905405,7.7742,2978.0,2976.9,7.4747]
[1766066905608,8.23858023,2977.8,2976.9,7.4747]
[1766066905793,8.23858023,2977.8,2976.7,0.566]
[1766066905794,7.7742,2977.6,2976.7,8.0407]
[1766066905998,2.4489,2977.7,2976.7,8.0407]
[1766066905999,3.0139,2977.7,2976.8,7.4757]
[1766066906200,2.4489,2977.7,2976.8,7.4757]
[1766066906916,0.565,2978.3,2977.3,9.2058]
[1766066907209,0.565,2978.3,2976.8,0.001]
[1766066907210,2.4489,2978.1,2977.0,7.4747]
[1766066907509,0.565,2978.6,2977.6,7.4747]
[1766066907708,0.565,2978.6,2977.6,9.2058]
[1766066907908,3.0139,2978.8,2977.8,7.4747]
[1766066908139,2.4489,2978.8,2977.9,8.22217]
[1766066908709,0.565,2978.9,2978.0,1.7311]
[1766066908905,0.565,2979.0,2978.1,7.4747]
[1766066909138,3.0139,2979.0,2978.1,7.4747]
[1766066909437,2.4489,2979.0,2978.1,7.4747]
[1766066909640,3.0139,2979.0,2978.1,7.4747]
[1766066909841,3.0139,2979.0,2978.1,8.470027]
[1766066910341,3.0139,2979.0,2977.9,0.565]
[1766066910639,10.2231,2978.9,2977.9,0.565]
[1766066910843,7.7742,2978.8,2977.9,0.565]
[1766066911017,10.2231,2978.8,2977.9,0.565]
[1766066911218,10.2231,2978.8,2977.9,8.0397]
[1766066911424,0.565,2978.7,2977.9,8.84367]
[1766066911637,0.565,2978.7,2977.9,0.80397]
[1766066911838,2.4489,2978.1,2977.5,0.001]
[1766066912052,0.565,2978.0,2977.5,0.001]
[1766066912254,8.98314957,2979.0,2977.8,7.4747]
[1766066912255,0.46438023,2978.7,2977.8,7.4747]
[1766066912545,0.46438023,2978.7,2977.8,9.2058]
[1766066912546,0.565,2978.6,2977.8,9.2058]
[1766066912748,0.565,2978.6,2977.9,8.39528]
[1766066913328,0.002,2979.0,2978.1,7.4747]
[1766066913531,0.565,2978.9,2978.1,9.2058]
[1766066913743,1.03138023,2979.0,2978.1,9.2058]
[1766066913920,1.03138023,2979.0,2978.1,2.2961]
[1766066913921,0.002,2979.0,2978.1,2.2961]
[1766066914126,0.002,2979.0,2978.2,7.70431]
[1766066915012,0.002,2979.0,2978.2,7.4747]
[1766066915445,0.002,2979.0,2978.1,0.565]
[1766066915446,0.002,2979.0,2978.4,9.2058]
[1766066915642,0.002,2979.2,2978.6,7.4747]
[1766066916617,0.0012,2979.2,2978.6,7.4747]
[1766066918324,5.80617647,2980.4,2979.3,7.4747]
[1766066918533,5.80617647,2980.4,2979.3,9.2038]
[1766066918534,3.0149,2980.4,2979.3,9.2038]
[1766066918735,0.002,2980.4,2979.6,1.7291]
[1766066918935,0.002,2980.4,2979.7,9.2038]
[1766066919652,0.002,2980.4,2979.9,7.4747]
[1766066920029,0.002,2980.4,2979.7,0.564]
[1766066920446,2.4489,2980.3,2978.8,7.4747]
[1766066920651,10.2231,2980.3,2979.2,0.46438023]
[1766066920955,0.002,2980.4,2979.9,7.4747]
[1766066921152,0.002,2980.4,2978.6,7.4747]
[1766066921324,2.4489,2979.9,2978.7,7.4747]
[1766066921652,2.4489,2979.7,2978.7,7.4747]
[1766066921823,0.564,2979.9,2978.7,9.95127]
[1766066922153,1.02838023,2979.9,2978.9,9.2038]
[1766066922451,2.89818023,2979.4,2978.6,0.564]
[1766066922618,2.89818023,2979.4,2978.4,0.001]
[1766066922619,10.96418023,2979.4,2978.4,0.001]
[1766066923227,13.75657154,2979.4,2978.4,7.8945]
[1766066923426,10.40018023,2979.2,2978.4,0.001]
[1766066923656,3.35559209,2980.1,2978.5,7.8935]
[1766066923842,9.9358,2980.1,2978.9,9.6226]
[1766066924018,2.89818023,2980.0,2978.9,9.6226]
[1766066924427,2.4338,2979.9,2978.9,9.6226]
[1766066924944,5.78962967,2979.9,2978.9,9.6226]
[1766066925128,3.35582967,2979.9,2978.9,7.8935]
[1766066925331,0.04152781,2979.8,2978.9,7.8935]
[1766066925544,0.46438023,2980.2,2979.1,9.6226]
[1766066925751,0.564,2980.1,2979.1,9.6226]
[1766066926223,0.04152781,2980.0,2979.1,9.6226]
[1766066926623,7.502,2979.8,2978.8,0.564]
[1766066926822,2.4338,2979.7,2978.8,9.60154302]
[1766066927746,2.4338,2979.3,2978.4,0.001]
[1766066927953,7.502,2979.1,2978.4,0.001]
[1766066928158,2.4338,2979.0,2978.4,0.001]
[1766066928357,0.564,2978.9,2978.4,0.001]
[1766066929362,2.9978,2978.9,2978.4,0.001]
[1766066930354,10.4998,2978.9,2978.4,0.001]
[1766066930562,10.44170804,2978.8,2977.8,7.8935]
[1766066930767,2.4338,2978.6,2977.5,1.7311]
[1766066930934,2.47532781,2978.5,2977.5,2.2951]
[1766066931278,3.03932781,2978.5,2977.5,10.1886]
[1766066931580,3.03932781,2978.5,2977.5,11.20746]
[1766066931860,7.502,2978.4,2977.5,0.565]
[1766066932156,9.9358,2978.4,2977.5,8.4585]
[1766066932459,2.4338,2977.9,2977.2,0.001]
[1766066932664,2.02096023,2977.8,2977.2,0.001]
[1766066932829,0.46438023,2977.8,2977.2,0.001]
[1766066933026,1.02738023,2977.8,2977.2,0.001]
[1766066933537,1.02738023,2977.8,2976.8,0.001]
[1766066933538,7.502,2977.7,2976.8,0.001]
[1766066933868,9.9358,2977.5,2976.8,0.001]
[1766066934432,2.4338,2978.0,2976.9,7.8935]
[1766066934632,1.31719825,2977.9,2976.9,7.8935]
[1766066934842,0.75419825,2977.9,2976.9,7.8935]
[1766066935255,10.68999825,2977.9,2976.9,7.8935]
[1766066935457,0.563,2977.8,2976.9,7.8935]
[1766066936152,2.9968,2977.8,2976.9,7.8935]
[1766066936351,0.46438023,2977.7,2976.9,7.8935]
[1766066936549,0.46438023,2977.7,2976.9,8.68305]
[1766066937158,0.46438023,2977.7,2976.8,0.001]
[1766066937362,0.46438023,2977.7,2976.7,0.465]
[1766066937560,0.46438023,2977.7,2976.5,0.001]
[1766066937561,7.502,2977.3,2976.5,0.001]
[1766066937764,2.89818023,2977.2,2976.5,0.001]
[1766066938129,7.96638023,2977.2,2976.5,0.001]
[1766066938337,2.89818023,2977.0,2976.5,0.001]
[1766066938533,7.502,2976.5,2974.4,7.8935]
[1766066938773,8.98314957,2977.2,2975.0,7.8935]
[1766066938774,0.563,2976.4,2975.0,7.8935]
[1766066938978,0.563,2976.4,2975.4,9.6246]
[1766066939181,0.563,2976.4,2975.5,8.85596]
[1766066939335,0.46438023,2976.4,2975.6,0.001]
[1766066939539,2.89818023,2976.2,2975.6,0.001]
[1766066939948,0.563,2976.5,2975.6,0.001]
[1766066940142,0.563,2976.7,2975.7,7.8935]
[1766066940342,2.4338,2977.4,2975.9,7.8935]
[1766066940535,9.9358,2977.2,2976.2,7.8935]
[1766066940739,2.4338,2977.1,2976.2,7.8935]
[1766066940965,2.4338,2977.1,2976.3,1.7311]
[1766066940966,0.563,2977.1,2976.3,1.7311]
[1766066941169,2.4338,2977.7,2976.6,7.8935]
[1766066941381,3.42658,2977.6,2976.6,7.8935]
[1766066941541,2.4338,2977.6,2976.6,7.8935]
[1766066941740,2.4338,2977.5,2976.6,7.8935]
[1766066942037,2.4338,2977.3,2976.2,7.8935]
[1766066942260,0.46438023,2977.0,2976.2,8.4565]
[1766066942461,2.89818023,2977.0,2976.2,8.4565]
[1766066942637,2.89818023,2977.0,2976.2,8.73915]
[1766066942850,2.3758,2976.9,2975.9,0.563]
[1766066943041,2.3758,2976.9,2975.9,8.5256]
[1766066943238,10.1651,2976.9,2975.9,8.5256]
[1766066943438,2.3758,2976.6,2975.6,0.001]
[1766066943643,2.3758,2976.3,2975.6,0.001]
[1766066943867,2.84018023,2976.3,2975.6,0.001]
[1766066944435,0.46438023,2976.2,2975.6,0.001]
[1766066945771,2.84018023,2976.2,2975.6,0.001]
[1766066945965,0.46438023,2976.2,2975.6,0.001]
[1766066946170,0.46438023,2976.2,2975.6,0.85366]
[1766066946338,3.8243762,2976.2,2975.6,0.001]
[1766066946670,0.46438023,2976.3,2975.6,7.9636]
[1766066946870,8.25368023,2976.7,2975.6,7.9636]
[1766066947046,10.1651,2976.5,2975.6,7.9636]
[1766066947253,2.84018023,2976.5,2975.6,7.9636]
[1766066947450,3.35942486,2976.7,2975.6,2.13867]
[1766066947451,0.46438023,2976.7,2975.6,2.13867]
[1766066947648,7.7893,2976.8,2975.7,7.9626]
[1766066947649,10.1651,2976.8,2975.7,7.9626]
[1766066947842,10.1651,2976.8,2975.8,8.5256]
[1766066948575,0.46438023,2976.7,2975.8,8.5256]
[1766066948872,2.3758,2977.7,2976.2,9.1307]
[1766066949075,2.3758,2977.7,2976.4,9.1307]
[1766066949076,0.23758,2977.6,2976.4,9.1307]
[1766066949301,2.3758,2977.7,2976.6,7.9626]
[1766066949443,5.73420945,2977.6,2976.7,0.563]
[1766066949653,0.04152781,2977.5,2976.7,0.563]
[1766066949851,0.46438023,2977.3,2976.3,0.91307]
[1766066950046,2.3758,2977.0,2976.4,0.563]
[1766066950276,2.3758,2976.9,2975.7,7.9626]
[1766066950447,2.84018023,2976.8,2975.7,7.9626]
[1766066950791,2.3758,2976.6,2975.6,0.001]
[1766066950944,2.3758,2976.3,2974.4,7.9636]
[1766066951142,2.84018023,2975.6,2974.4,7.9636]
[1766066951355,2.84018023,2975.6,2974.6,7.9626]
[1766066951542,1.18233298,2976.2,2975.2,7.9626]
[1766066951543,2.3758,2976.2,2975.2,7.9626]
[1766066951859,2.3758,2976.2,2975.3,0.563]
[1766066952274,4.38717147,2976.4,2975.4,7.9626]
[1766066952477,0.003,3356.9,2975.7,1.1701]
[1766066952478,7.6488,2977.3,2975.7,1.1701]
[1766066952646,2.3971,2977.1,2975.8,8.7511044]
[1766066952946,10.0459,2977.0,2975.9,0.03360327]
[1766066953142,10.6089,2977.0,2975.8,8.7175]
[1766066953343,7.6488,2976.6,2975.9,0.92805]
[1766066953556,3.35931201,2976.8,2975.0,7.5474]
[1766066953557,2.86148023,2976.2,2975.0,7.5474]
[1766066953776,2.3971,2976.2,2975.3,7.5474]
[1766066954787,0.46438023,2976.3,2975.3,7.5474]
[1766066955084,0.563,2976.3,2975.5,8.7175]
[1766066955282,2.3971,2976.7,2975.5,8.7175]
[1766066955483,2.3971,2976.7,2975.7,7.5474]
[1766066955484,0.562,2976.5,2975.7,7.5474]
[1766066955783,0.46438023,2976.4,2975.7,7.5474]
[1766066956083,1.02638023,2976.5,2975.6,8.41915]
[1766066956463,0.46438023,2976.4,2975.8,0.001]
[1766066956804,0.90298586,2976.4,2975.8,0.001]
[1766066956986,0.46438023,2976.4,2975.8,0.001]
[1766066957383,3.35979852,2976.4,2975.8,0.001]
[1766066957684,0.46438023,2976.3,2975.8,0.001]
[1766066957883,2.86148023,2976.3,2975.8,0.001]
[1766066958086,2.86148023,2976.1,2975.2,7.5474]
[1766066958247,3.42348023,2976.1,2975.2,7.5474]
[1766066958652,2.3971,2975.8,2975.0,0.562]
[1766066958985,2.3971,2975.8,2974.9,7.5474]
[1766066958986,0.46438023,2975.7,2974.9,7.5474]
[1766066959350,10.0459,2975.9,2974.7,8.1094]
[1766066959549,0.46438023,2975.8,2974.7,8.1094]
[1766066959783,2.86148023,2975.8,2974.7,8.1094]
[1766066960083,0.46438023,2975.8,2974.8,1.1701]
[1766066960384,0.562,2975.9,2974.9,8.7175]
[1766066960796,0.46438023,2976.1,2974.9,7.5474]
[1766066960958,3.35966167,2976.5,2975.3,7.5474]
[1766066961157,3.35966167,2976.5,2975.4,1.31674]
[1766066961158,2.3971,2976.3,2975.4,1.31674]
[1766066961394,0.04152781,2976.2,2975.4,1.31674]
[1766066961590,0.46438023,2976.1,2975.3,7.5474]
[1766066961770,2.3971,2975.9,2975.0,0.562]
[1766066961969,0.46438023,2975.8,2975.0,0.562]
[1766066962170,2.3971,2975.9,2975.0,0.562]
[1766066962374,2.3971,2975.9,2974.6,0.001]
[1766066962375,2.3971,2975.8,2974.6,0.001]
[1766066962564,2.86148023,2975.5,2974.6,0.001]
[1766066962768,2.3971,2975.1,2974.6,0.001]
[1766066963171,2.3971,2975.5,2974.6,0.001]
[1766066963378,0.562,2975.5,2974.8,7.5474]
[1766066963688,2.86148023,2976.0,2974.9,1.20371457]
[1766066963689,0.46438023,2976.0,2974.9,1.20371457]
[1766066963983,9.22040825,2976.0,2975.0,8.1094]
[1766066964564,2.86148023,2975.8,2975.0,0.562]
[1766066965087,2.3971,2975.7,2975.0,0.562]
[1766066965466,2.43862781,2975.7,2975.0,0.562]
[1766066965960,2.3971,2975.7,2975.0,0.562]
[1766066966162,2.3963,2975.5,2974.9,0.001]
[1766066966594,0.46438023,2975.4,2974.9,0.001]
[1766066966759,8.11318023,2975.3,2974.6,0.001]
[1766066967292,7.6488,2975.8,2974.6,8.7203]
[1766066967594,0.46438023,2976.0,2975.0,7.5474]
[1766066967761,0.562,2975.9,2975.0,7.5474]
[1766066968093,11.47344233,2976.0,2975.0,7.5474]
[1766066968401,0.46438023,2975.8,2975.0,7.5474]
[1766066969287,2.86148023,2975.9,2974.9,0.562]
[1766066969473,2.3971,2975.6,2974.9,0.562]
[1766066969675,2.86148023,2975.6,2974.9,0.562]
[1766066969857,0.46438023,2975.7,2975.0,7.5474]
[1766066970064,0.562,2976.0,2975.0,7.5474]
[1766066970262,0.46438023,2975.9,2975.0,7.5474]
[1766066970473,0.46438023,2975.9,2975.1,0.92813]
[1766066970800,0.46438023,2975.9,2975.0,7.5474]
[1766066971087,10.51028023,2975.9,2974.9,0.562]
[1766066971261,10.51028023,2975.9,2975.0,0.03361344]
[1766066971458,11.07228023,2975.9,2974.9,0.562]
[1766066971662,10.51028023,2975.9,2975.0,0.81094]
[1766066971862,11.07228023,2975.9,2975.0,8.35834]
[1766066972090,10.51028023,2975.9,2975.0,8.35834]
[1766066972304,7.6488,2976.0,2975.0,0.81094]
[1766066972475,7.6488,2975.7,2974.9,0.563]
[1766066972677,10.0459,2975.7,2974.9,0.563]
[1766066972873,0.002,2976.0,2975.0,8.7193]
[1766066973072,2.44062781,2976.0,2975.0,8.7193]
[1766066973295,0.46438023,2975.9,2975.0,8.7193]
[1766066973590,2.86148023,2975.9,2975.0,8.47563]
[1766066974374,2.86148023,2975.9,2975.0,0.92823]
[1766066974695,0.46438023,2975.7,2974.9,8.1104]
[1766066974887,2.86148023,2975.7,2974.9,8.1104]
[1766066975084,2.86148023,2975.7,2974.9,7.5484]
[1766066975266,10.0459,2975.6,2974.9,0.001]
[1766066975466,2.86148023,2975.5,2974.9,0.001]
[1766066975680,3.96860825,2975.5,2974.9,0.001]
[1766066975987,0.561,2975.8,2975.2,7.5474]
[1766066976204,2.86148023,2976.1,2975.2,7.5474]
[1766066976373,6.22158429,2976.1,2975.2,7.5474]
[1766066976578,2.86148023,2976.1,2975.2,7.5474]
[1766066977022,2.3971,2976.6,2975.6,7.5474]
[1766066977186,2.3971,2976.6,2975.7,0.561]
[1766066977187,10.0459,2976.5,2975.7,0.561]
[1766066977389,0.46438023,2976.4,2975.7,0.561]
[1766066977691,2.3971,2976.4,2975.5,7.5474]
[1766066977883,2.3971,2976.4,2975.3,0.561]
[1766066978086,7.6488,2976.0,2975.3,0.561]
[1766066978397,10.0459,2975.8,2975.0,0.561]
[1766066978577,10.0459,2975.8,2974.9,0.001]
[1766066978578,0.561,2975.8,2974.9,0.001]
[1766066978775,2.86148023,2975.8,2974.9,7.5484]
[1766066979379,0.46438023,2975.6,2974.9,0.001]
[1766066979579,0.46438023,2975.9,2974.9,7.5484]
[1766066979780,2.86148023,2976.0,2974.9,7.5484]
[1766066979980,0.561,2975.9,2974.9,8.7203]
[1766066980218,6.22169813,2976.0,2974.9,8.7203]
[1766066980415,0.561,2976.1,2975.1,7.5474]
[1766066980624,0.561,2976.1,2975.0,0.90564344]
[1766066980625,2.86148023,2975.9,2975.2,0.561]
[1766066980913,2.3991,2975.9,2975.2,0.561]
[1766066981309,2.3971,2975.7,2974.9,0.001]
[1766066981481,0.46438023,2975.5,2974.9,0.001]
[1766066982179,2.86148023,2975.5,2974.9,0.001]
[1766066982380,1.05102802,2975.4,2974.9,0.001]
[1766066982607,2.86148023,2975.5,2974.9,0.001]
[1766066982816,0.46438023,2975.6,2974.9,0.001]
[1766066983234,10.27438023,2975.6,2974.9,0.001]
[1766066983621,2.5188,2975.5,2974.9,0.001]
[1766066983922,7.2912,2975.4,2974.9,0.001]
[1766066984102,8.2722,2975.3,2974.7,0.561]
[1766066984297,2.5188,2975.1,2974.6,0.001]
[1766066984498,2.5188,2975.1,2974.4,0.001]
[1766066984499,7.2912,2974.9,2974.4,0.001]
[1766066984709,2.5188,2974.7,2973.7,8.197]
[1766066984911,0.46438023,2974.5,2973.7,8.197]
[1766066985119,2.98318023,2974.4,2972.8,3.36375081]
[1766066985318,2.98318023,2974.4,2973.2,7.636]
[1766066985521,2.98318023,2974.4,2973.3,8.197]
[1766066985522,2.5188,2974.3,2973.3,8.197]
[1766066986029,10.27438023,2974.8,2973.7,7.636]
[1766066986208,10.27438023,2974.8,2973.8,0.561]
[1766066986533,2.98318023,2974.6,2973.8,0.561]
[1766066986904,0.46438023,2974.4,2973.8,0.561]
[1766066987231,0.29831802,2974.3,2973.0,0.405504]
[1766066987436,2.98318023,2974.5,2973.2,1.1739]
[1766066987735,0.46438023,2974.3,2973.3,7.636]
[1766066987931,2.5188,2974.3,2973.3,7.636]
[1766066988133,0.46438023,2974.2,2973.3,7.636]
[1766066988313,6.34543332,2974.2,2973.3,7.636]
[1766066988507,8.04529987,2974.2,2973.3,7.636]
[1766066988710,4.68304678,2974.2,2973.3,7.636]
[1766066988909,0.561,2974.4,2973.5,7.636]
[1766066989111,0.561,2974.4,2973.7,7.636]
[1766066989829,10.83538023,2974.6,2973.8,0.001]
[1766066990029,2.98318023,2974.4,2973.8,0.001]
[1766066990330,0.46438023,2974.1,2973.3,7.636]
[1766066990701,1.58843802,2974.3,2973.3,7.636]
[1766066990895,1.58843802,2974.3,2973.2,0.561]
[1766066990896,0.561,2974.3,2973.5,7.636]
[1766066991107,0.46438023,2974.2,2973.5,7.636]
[1766066991332,2.98318023,2974.2,2973.2,8.197]
[1766066991521,0.46438023,2974.0,2973.2,8.197]
[1766066991727,2.98318023,2974.0,2973.2,8.197]
[1766066992032,0.46438023,2974.3,2973.3,1.1739]
[1766066992328,0.46438023,2974.3,2973.2,9.13409]
[1766066992329,0.46438023,2974.3,2973.6,7.636]
[1766066992731,2.98318023,2974.4,2973.3,7.636]
[1766066993103,2.98318023,2974.4,2973.3,8.8099]
[1766066993302,0.46438023,2974.4,2973.2,1.49809]
[1766066993498,2.5188,2973.5,2972.6,0.001]
[1766066993697,0.04152781,2973.4,2972.6,7.637]
[1766066994006,0.46438023,2973.7,2972.8,8.8099]
[1766066994386,0.46438023,2973.8,2972.8,7.636]
[1766066994637,0.46438023,2973.4,2972.7,0.56]
[1766066994826,0.46438023,2973.3,2972.6,0.001]
[1766066995023,9.81,2973.1,2972.6,0.001]
[1766066995341,2.5188,2973.8,2972.6,1.1749]
[1766066995638,7.2912,2973.6,2972.7,7.636]